[Event "*** MasterClass Titled Tuesday Blitz"]
[Site "Chess.com"]
[Date "2017.11.07"]
[Round "4"]
[White "ZapataCharlesS"]
[Black "pKiLz5Rn9b"]
[Result "1-0"]
[WhiteElo "2532"]
[BlackElo "2568"]
[TimeControl "180+2"]
[EndTime "15:04:39 PST"]
[Termination "ZapataCharlesS won on time"]

1. e4 {[%clk 0:03:01.9]} 1... e6 {[%clk 0:03:00.3]} 2. d3 {[%clk 0:02:55.3]}
2... d5 {[%clk 0:03:01.6]} 3. Nd2 {[%clk 0:02:57]} 3... Nf6 {[%clk 0:03:03]} 4.
Ngf3 {[%clk 0:02:56.7]} 4... Be7 {[%clk 0:03:04.4]} 5. g3 {[%clk 0:02:56.6]}
5... O-O {[%clk 0:03:05.9]} 6. Bg2 {[%clk 0:02:56.4]} 6... c5 {[%clk 0:03:07.3]}
7. O-O {[%clk 0:02:55.5]} 7... Nc6 {[%clk 0:03:08.7]} 8. e5 {[%clk 0:02:51.8]}
8... Nd7 {[%clk 0:03:09]} 9. Re1 {[%clk 0:02:52.3]} 9... b5 {[%clk 0:03:09.3]}
10. a4 {[%clk 0:02:49.4]} 10... bxa4 {[%clk 0:03:08.5]} 11. Rxa4 {[%clk
0:02:44.9]} 11... Nb6 {[%clk 0:03:09.3]} 12. Ra2 {[%clk 0:02:44.2]} 12... a5
{[%clk 0:03:06.4]} 13. Nf1 {[%clk 0:02:42.5]} 13... Re8 {[%clk 0:03:03.2]} 14.
h4 {[%clk 0:02:41.7]} 14... a4 {[%clk 0:03:01.7]} 15. N1h2 {[%clk 0:02:41.1]}
15... h6 {[%clk 0:03:02.2]} 16. Ng4 {[%clk 0:02:39.2]} 16... Bf8 {[%clk
0:03:03.5]} 17. Bxh6 {[%clk 0:02:35]} 17... gxh6 {[%clk 0:03:01.5]} 18. Nf6+
{[%clk 0:02:34.5]} 18... Kh8 {[%clk 0:03:02.9]} 19. c4 {[%clk 0:02:26.7]} 19...
Bg7 {[%clk 0:03:00.4]} 20. Nxe8 {[%clk 0:02:19.2]} 20... Qxe8 {[%clk 0:03:02.3]}
21. cxd5 {[%clk 0:02:21.1]} 21... exd5 {[%clk 0:03:02.1]} 22. d4 {[%clk
0:02:19]} 22... c4 {[%clk 0:02:56.2]} 23. Ra3 {[%clk 0:02:19.1]} 23... Nb4
{[%clk 0:02:54.6]} 24. Qd2 {[%clk 0:02:15.8]} 24... Nd3 {[%clk 0:02:54.2]} 25.
Rea1 {[%clk 0:02:16.8]} 25... Bd7 {[%clk 0:02:52.7]} 26. Ne1 {[%clk 0:02:17.8]}
26... Bb5 {[%clk 0:02:52.3]} 27. Nxd3 {[%clk 0:02:14.4]} 27... cxd3 {[%clk
0:02:52.9]} 28. b3 {[%clk 0:02:16.3]} 28... Bf8 {[%clk 0:02:51.8]} 29. bxa4
{[%clk 0:02:14]} 29... Nc4 {[%clk 0:02:50.7]} 30. Qxd3 {[%clk 0:02:10.1]} 30...
Nxa3 {[%clk 0:02:48.2]} 31. axb5 {[%clk 0:02:07.3]} 31... Qd7 {[%clk 0:02:11.5]}
32. b6 {[%clk 0:01:52.3]} 32... Qc6 {[%clk 0:02:11.9]} 33. Qb3 {[%clk
0:01:47.5]} 33... Rb8 {[%clk 0:01:22.2]} 34. Qxd5 {[%clk 0:01:45.3]} 34... Qxd5
{[%clk 0:01:16.8]} 35. Bxd5 {[%clk 0:01:47.2]} 35... Rxb6 {[%clk 0:01:18.2]} 36.
Bxf7 {[%clk 0:01:46.4]} 36... Nc2 {[%clk 0:01:17.7]} 37. Rd1 {[%clk 0:01:43]}
37... Kg7 {[%clk 0:01:15]} 38. Bh5 {[%clk 0:01:43.8]} 38... Nb4 {[%clk
0:00:48.3]} 39. d5 {[%clk 0:01:41]} 39... Rb5 {[%clk 0:00:49.2]} 40. Bf3 {[%clk
0:01:37.6]} 40... Bc5 {[%clk 0:00:43.4]} 41. Kg2 {[%clk 0:01:34.2]} 41... Rb8
{[%clk 0:00:37.9]} 42. d6 {[%clk 0:01:32.3]} 42... Kf7 {[%clk 0:00:33.4]} 43.
Bh5+ {[%clk 0:01:27]} 43... Ke6 {[%clk 0:00:33.6]} 44. f4 {[%clk 0:01:27.5]}
44... Nc6 {[%clk 0:00:21.5]} 45. Bg4+ {[%clk 0:01:24.4]} 45... Kf7 {[%clk
0:00:21.7]} 46. Bh5+ {[%clk 0:01:25.5]} 46... Ke6 {[%clk 0:00:21.9]} 47. Kh3
{[%clk 0:01:25.2]} 47... Nd4 {[%clk 0:00:22.1]} 48. Rc1 {[%clk 0:01:26.2]} 48...
Bb6 {[%clk 0:00:22]} 49. Bg4+ {[%clk 0:01:23.6]} 49... Kf7 {[%clk 0:00:22.9]}
50. Rc7+ {[%clk 0:01:23.1]} 50... Kf8 {[%clk 0:00:17.4]} 51. Rh7 {[%clk
0:01:23.3]} 51... Kg8 {[%clk 0:00:16.8]} 52. Rxh6 {[%clk 0:01:21.4]} 52... Ra8
{[%clk 0:00:17.9]} 53. Rg6+ {[%clk 0:01:18.1]} 53... Kh7 {[%clk 0:00:18]} 54.
Rf6 {[%clk 0:01:14.7]} 54... Ra1 {[%clk 0:00:18.8]} 55. d7 {[%clk 0:01:07]}
55... Bc7 {[%clk 0:00:12.2]} 56. Rf8 {[%clk 0:01:05.8]} 56... Nc2 {[%clk
0:00:12.3]} 57. Bf5+ {[%clk 0:00:49.1]} 57... Kg7 {[%clk 0:00:13]} 58. d8=Q
{[%clk 0:00:49.5]} 58... Bxd8 {[%clk 0:00:14.4]} 59. Rxd8 {[%clk 0:00:51.4]}
59... Ne3 {[%clk 0:00:16.3]} 60. Be4 {[%clk 0:00:47]} 60... Ra4 {[%clk
0:00:15.7]} 61. Bf3 {[%clk 0:00:47.2]} 61... Ra3 {[%clk 0:00:17.1]} 62. Rd7+
{[%clk 0:00:47]} 62... Kf8 {[%clk 0:00:17.9]} 63. Rd6 {[%clk 0:00:44.1]} 63...
Kg7 {[%clk 0:00:17.4]} 64. Rf6 {[%clk 0:00:44.4]} 64... Nf1 {[%clk 0:00:18.1]}
65. Kg2 {[%clk 0:00:42.4]} 65... Nd2 {[%clk 0:00:17.4]} 66. Bd5 {[%clk
0:00:39.7]} 66... Rd3 {[%clk 0:00:16.3]} 67. Rd6 {[%clk 0:00:39.9]} 67... Re3
{[%clk 0:00:15.8]} 68. h5 {[%clk 0:00:32.8]} 68... Re2+ {[%clk 0:00:15.6]} 69.
Kh3 {[%clk 0:00:33.7]} 69... Nf1 {[%clk 0:00:17.5]} 70. Kg4 {[%clk 0:00:29.1]}
70... Rh2 {[%clk 0:00:14]} 71. h6+ {[%clk 0:00:31]} 71... Kh8 {[%clk 0:00:13.4]}
72. Kg5 {[%clk 0:00:28.4]} 72... Nxg3 {[%clk 0:00:04.7]} 73. Kg6 {[%clk
0:00:28.9]} 73... Rxh6+ {[%clk 0:00:04.1]} 74. Kxh6 {[%clk 0:00:30.3]} 74...
Nf5+ {[%clk 0:00:05.3]} 75. Kg5 {[%clk 0:00:31.9]} 1-0

[Event "*** MasterClass Titled Tuesday Blitz"]
[Site "Chess.com"]
[Date "2017.11.07"]
[Round "5"]
[White "Bryakin_Mikhail"]
[Black "maciek_92"]
[Result "1-0"]
[WhiteElo "2506"]
[BlackElo "2546"]
[TimeControl "180+2"]
[EndTime "15:07:52 PST"]
[Termination "Bryakin_Mikhail won by checkmate"]

1. d4 {[%clk 0:03:00.1]} 1... Nf6 {[%clk 0:03:00.2]} 2. c4 {[%clk 0:03:01.3]}
2... e6 {[%clk 0:03:01.7]} 3. Nf3 {[%clk 0:03:02.3]} 3... b6 {[%clk 0:03:03.2]}
4. g3 {[%clk 0:03:03.7]} 4... Ba6 {[%clk 0:03:04.7]} 5. Qc2 {[%clk 0:03:04.8]}
5... Be7 {[%clk 0:03:05.3]} 6. Bg2 {[%clk 0:03:05.7]} 6... Bb7 {[%clk
0:03:05.7]} 7. O-O {[%clk 0:03:06.7]} 7... O-O {[%clk 0:03:07.1]} 8. Nc3 {[%clk
0:03:07.2]} 8... c5 {[%clk 0:03:08.6]} 9. dxc5 {[%clk 0:03:08.2]} 9... bxc5
{[%clk 0:03:10]} 10. e4 {[%clk 0:03:07.3]} 10... Nc6 {[%clk 0:03:10.2]} 11. e5
{[%clk 0:03:01.6]} 11... Ne8 {[%clk 0:03:10.9]} 12. Bf4 {[%clk 0:02:56.8]} 12...
h6 {[%clk 0:03:11.5]} 13. h3 {[%clk 0:02:52.9]} 13... Qb6 {[%clk 0:03:12.1]} 14.
Rad1 {[%clk 0:02:52]} 14... Nd4 {[%clk 0:03:10.3]} 15. Nxd4 {[%clk 0:02:49.2]}
15... Bxg2 {[%clk 0:03:12.2]} 16. Nxe6 {[%clk 0:02:19.1]} 16... Bxf1 {[%clk
0:03:05.1]} 17. Nxf8 {[%clk 0:02:19.7]} 17... Bxh3 {[%clk 0:03:06.1]} 18. Qh7+
{[%clk 0:02:17.7]} 18... Kxf8 {[%clk 0:03:05.6]} 19. Qh8# {[%clk 0:02:19.6]} 1-0

[Event "*** MasterClass Titled Tuesday Blitz"]
[Site "Chess.com"]
[Date "2017.11.07"]
[Round "5"]
[White "GrigorGrigorov"]
[Black "Cherone"]
[Result "1-0"]
[WhiteElo "2617"]
[BlackElo "2453"]
[TimeControl "180+2"]
[EndTime "15:10:04 PST"]
[Termination "GrigorGrigorov won by resignation"]

1. d4 {[%clk 0:03:00.9]} 1... d6 {[%clk 0:03:00.4]} 2. Nf3 {[%clk 0:03:01.2]}
2... Nf6 {[%clk 0:03:01.3]} 3. c4 {[%clk 0:03:01.6]} 3... g6 {[%clk 0:03:02]} 4.
g3 {[%clk 0:03:02.5]} 4... Bg7 {[%clk 0:03:02.6]} 5. Bg2 {[%clk 0:03:04]} 5...
O-O {[%clk 0:03:03.7]} 6. O-O {[%clk 0:03:05]} 6... c6 {[%clk 0:03:04.8]} 7. Nc3
{[%clk 0:03:05.2]} 7... Qa5 {[%clk 0:03:05.7]} 8. e4 {[%clk 0:03:05]} 8... e5
{[%clk 0:03:03.2]} 9. d5 {[%clk 0:03:05.9]} 9... cxd5 {[%clk 0:02:58.1]} 10.
cxd5 {[%clk 0:03:06.9]} 10... b5 {[%clk 0:02:57.8]} 11. a3 {[%clk 0:03:08.1]}
11... b4 {[%clk 0:02:50.5]} 12. Na2 {[%clk 0:03:08.6]} 12... bxa3 {[%clk
0:02:47.2]} 13. Nc3 {[%clk 0:03:09]} 13... Qb4 {[%clk 0:02:24.2]} 14. Rxa3
{[%clk 0:02:57.9]} 14... Nxe4 {[%clk 0:02:14.7]} 15. Nxe4 {[%clk 0:02:57.9]}
15... Qxe4 {[%clk 0:02:14.4]} 16. Ng5 {[%clk 0:02:59]} 16... Qg4 {[%clk
0:02:06.3]} 17. Ne6 {[%clk 0:02:59.4]} 17... Qxd1 {[%clk 0:02:00.4]} 18. Rxd1
{[%clk 0:02:58.4]} 18... Na6 {[%clk 0:01:06.2]} 19. Nxf8 {[%clk 0:02:56.1]}
19... Bxf8 {[%clk 0:01:07.4]} 20. Be3 {[%clk 0:02:53]} 20... Rb8 {[%clk
0:00:55.4]} 21. Rc1 {[%clk 0:02:52.8]} 21... Bb7 {[%clk 0:00:51.5]} 22. Rb3
{[%clk 0:02:45.8]} 22... Nc5 {[%clk 0:00:46.6]} 1-0

[Event "*** MasterClass Titled Tuesday Blitz"]
[Site "Chess.com"]
[Date "2017.11.07"]
[Round "5"]
[White "PrinceMurad09"]
[Black "FearNoEvil12"]
[Result "1-0"]
[WhiteElo "2251"]
[BlackElo "2018"]
[TimeControl "180+2"]
[EndTime "15:10:10 PST"]
[Termination "PrinceMurad09 won by resignation"]

1. e4 {[%clk 0:03:01.9]} 1... a6 {[%clk 0:03:00.6]} 2. d4 {[%clk 0:03:02]} 2...
b5 {[%clk 0:03:01.9]} 3. a4 {[%clk 0:03:02.6]} 3... b4 {[%clk 0:03:01.9]} 4. Bd2
{[%clk 0:03:03.1]} 4... e6 {[%clk 0:03:01]} 5. c3 {[%clk 0:03:03.9]} 5... Bb7
{[%clk 0:03:00.7]} 6. Bd3 {[%clk 0:03:03.4]} 6... bxc3 {[%clk 0:03:00.6]} 7.
Nxc3 {[%clk 0:03:04.3]} 7... Nf6 {[%clk 0:03:02.1]} 8. Qe2 {[%clk 0:03:04.4]}
8... d6 {[%clk 0:03:02.9]} 9. Nf3 {[%clk 0:03:05.6]} 9... Nbd7 {[%clk
0:03:04.2]} 10. O-O {[%clk 0:03:06.6]} 10... h6 {[%clk 0:03:05.1]} 11. d5 {[%clk
0:03:06.8]} 11... e5 {[%clk 0:03:03.2]} 12. b4 {[%clk 0:03:07.8]} 12... g5
{[%clk 0:03:03]} 13. Rab1 {[%clk 0:03:04.3]} 13... Rg8 {[%clk 0:03:00.6]} 14.
Ne1 {[%clk 0:03:04.5]} 14... h5 {[%clk 0:02:57.7]} 15. Nc2 {[%clk 0:03:04.5]}
15... g4 {[%clk 0:02:55.5]} 16. Ne3 {[%clk 0:03:05.7]} 16... h4 {[%clk
0:02:49.7]} 17. Nf5 {[%clk 0:03:06.9]} 17... Nh5 {[%clk 0:02:45.2]} 18. g3
{[%clk 0:02:43.5]} 18... h3 {[%clk 0:02:41.2]} 19. f3 {[%clk 0:02:41.8]} 19...
gxf3 {[%clk 0:02:39.7]} 20. Qxf3 {[%clk 0:02:42.8]} 20... Nhf6 {[%clk
0:02:40.9]} 21. Rf2 {[%clk 0:02:35.9]} 21... Bc8 {[%clk 0:02:37.7]} 22. Rbf1
{[%clk 0:02:35.7]} 22... Be7 {[%clk 0:02:20]} 23. Nh6 {[%clk 0:02:30.6]} 23...
Rg6 {[%clk 0:02:12.2]} 24. Be2 {[%clk 0:02:31]} 24... Nf8 {[%clk 0:02:10.2]} 25.
Nf5 {[%clk 0:02:28.6]} 25... Bxf5 {[%clk 0:02:08.5]} 26. Qxf5 {[%clk 0:02:29.5]}
26... Qd7 {[%clk 0:02:08.5]} 27. b5 {[%clk 0:02:29.8]} 27... a5 {[%clk 0:02:06]}
28. b6 {[%clk 0:02:28.5]} 28... Qxf5 {[%clk 0:02:04]} 29. exf5 {[%clk
0:02:29.5]} 29... Rg8 {[%clk 0:02:00.6]} 30. bxc7 {[%clk 0:02:30.4]} 30... Kd7
{[%clk 0:02:02]} 31. Nb5 {[%clk 0:02:31.1]} 31... Nxd5 {[%clk 0:01:57.8]} 32.
Bf3 {[%clk 0:02:32.2]} 1-0

[Event "*** MasterClass Titled Tuesday Blitz"]
[Site "Chess.com"]
[Date "2017.11.07"]
[Round "5"]
[White "Rodalquilar"]
[Black "Aygehovit1992"]
[Result "0-1"]
[WhiteElo "2501"]
[BlackElo "2525"]
[TimeControl "180+2"]
[EndTime "15:11:13 PST"]
[Termination "Aygehovit1992 won by resignation"]

1. e4 {[%clk 0:03:01.9]} 1... c5 {[%clk 0:03:00.8]} 2. Nc3 {[%clk 0:03:03.2]}
2... Nc6 {[%clk 0:03:01.4]} 3. Bb5 {[%clk 0:03:04.3]} 3... g6 {[%clk 0:03:02.6]}
4. Bxc6 {[%clk 0:03:05.2]} 4... bxc6 {[%clk 0:03:03.9]} 5. f4 {[%clk 0:03:07.1]}
5... Bg7 {[%clk 0:03:05]} 6. d3 {[%clk 0:03:08.5]} 6... d5 {[%clk 0:03:04.8]} 7.
Nf3 {[%clk 0:03:05.2]} 7... Nf6 {[%clk 0:03:05.8]} 8. O-O {[%clk 0:03:05.4]}
8... O-O {[%clk 0:03:06.9]} 9. Qe1 {[%clk 0:03:03.6]} 9... Ba6 {[%clk
0:03:03.4]} 10. e5 {[%clk 0:03:04.6]} 10... Ne8 {[%clk 0:03:03.2]} 11. b3 {[%clk
0:03:06]} 11... Nc7 {[%clk 0:03:02.9]} 12. Ba3 {[%clk 0:03:01.7]} 12... Ne6
{[%clk 0:03:03.4]} 13. Na4 {[%clk 0:02:43.6]} 13... Bb5 {[%clk 0:02:49.5]} 14.
Nxc5 {[%clk 0:02:38.8]} 14... Qb6 {[%clk 0:02:20]} 15. Qf2 {[%clk 0:01:23]}
15... Nxf4 {[%clk 0:02:14.9]} 16. Rfe1 {[%clk 0:01:24.3]} 16... a5 {[%clk
0:02:12.7]} 17. Nd4 {[%clk 0:01:09.3]} 17... Ne6 {[%clk 0:02:02.1]} 18. Ndxe6
{[%clk 0:01:10.3]} 18... fxe6 {[%clk 0:02:02.9]} 19. Qe3 {[%clk 0:01:10.2]}
19... Rf5 {[%clk 0:01:59.6]} 20. d4 {[%clk 0:01:07]} 20... a4 {[%clk 0:01:59.2]}
21. Nxe6 {[%clk 0:01:04.5]} 21... Bxe5 {[%clk 0:01:49.8]} 22. dxe5 {[%clk
0:01:00.3]} 22... Rf1+ {[%clk 0:01:49.6]} 23. Rxf1 {[%clk 0:01:00.3]} 23...
Qxe3+ {[%clk 0:01:51]} 24. Kh1 {[%clk 0:01:01.8]} 24... Bxf1 {[%clk 0:01:51.2]}
25. Rxf1 {[%clk 0:01:01.3]} 25... axb3 {[%clk 0:01:51.8]} 26. Bxe7 {[%clk
0:00:58.8]} 26... bxa2 {[%clk 0:01:48.1]} 0-1

[Event "*** MasterClass Titled Tuesday Blitz"]
[Site "Chess.com"]
[Date "2017.11.07"]
[Round "5"]
[White "dretch"]
[Black "wonderfultime"]
[Result "1-0"]
[WhiteElo "2612"]
[BlackElo "2752"]
[TimeControl "180+2"]
[EndTime "15:11:14 PST"]
[Termination "dretch won by resignation"]

1. d4 {[%clk 0:03:01.9]} 1... d5 {[%clk 0:03:00.5]} 2. c4 {[%clk 0:03:02.6]}
2... c6 {[%clk 0:03:01.9]} 3. Nf3 {[%clk 0:02:59.4]} 3... Nf6 {[%clk 0:03:03.3]}
4. Nc3 {[%clk 0:03:00.7]} 4... a6 {[%clk 0:03:04.6]} 5. cxd5 {[%clk 0:03:01]}
5... cxd5 {[%clk 0:03:05.8]} 6. Bf4 {[%clk 0:03:02.4]} 6... Nc6 {[%clk
0:03:04.3]} 7. Rc1 {[%clk 0:03:03.2]} 7... e6 {[%clk 0:03:03.6]} 8. e3 {[%clk
0:03:02.2]} 8... Bd6 {[%clk 0:03:03.3]} 9. Bg3 {[%clk 0:03:03.1]} 9... O-O
{[%clk 0:02:58.9]} 10. Bd3 {[%clk 0:03:03.5]} 10... Ne7 {[%clk 0:03:00.1]} 11.
Be5 {[%clk 0:02:48.4]} 11... Ng6 {[%clk 0:02:49.2]} 12. h4 {[%clk 0:02:38.1]}
12... Ne8 {[%clk 0:02:25.1]} 13. Ng5 {[%clk 0:02:20.4]} 13... Nf6 {[%clk
0:00:42.6]} 14. Bxf6 {[%clk 0:01:48.6]} 14... gxf6 {[%clk 0:00:24.7]} 15. Qh5
{[%clk 0:01:44]} 15... fxg5 {[%clk 0:00:11]} 16. hxg5 {[%clk 0:01:45.9]} 16...
Re8 {[%clk 0:00:06.4]} 17. Qxh7+ {[%clk 0:01:46.8]} 17... Kf8 {[%clk 0:00:08.3]}
18. Bxg6 {[%clk 0:01:47.9]} 1-0

[Event "*** MasterClass Titled Tuesday Blitz"]
[Site "Chess.com"]
[Date "2017.11.07"]
[Round "5"]
[White "josiwales"]
[Black "Zufi1811"]
[Result "0-1"]
[WhiteElo "2356"]
[BlackElo "2432"]
[TimeControl "180+2"]
[EndTime "15:11:44 PST"]
[Termination "Zufi1811 won by resignation"]

1. e4 {[%clk 0:03:01.2]} 1... d5 {[%clk 0:03:00.1]} 2. exd5 {[%clk 0:03:02.1]}
2... Qxd5 {[%clk 0:03:02]} 3. Nc3 {[%clk 0:03:03.6]} 3... Qd6 {[%clk 0:03:03.6]}
4. Nf3 {[%clk 0:03:04.7]} 4... Nf6 {[%clk 0:03:05]} 5. d4 {[%clk 0:03:05.3]}
5... Bg4 {[%clk 0:03:06.2]} 6. Bc4 {[%clk 0:03:05.9]} 6... e6 {[%clk 0:03:01.9]}
7. h3 {[%clk 0:03:02.6]} 7... Bxf3 {[%clk 0:03:02]} 8. Qxf3 {[%clk 0:03:04.5]}
8... c6 {[%clk 0:03:03.1]} 9. Be3 {[%clk 0:03:01.5]} 9... Nbd7 {[%clk
0:03:03.8]} 10. O-O-O {[%clk 0:03:00.7]} 10... Qc7 {[%clk 0:03:05.3]} 11. Bf4
{[%clk 0:02:56.5]} 11... Bd6 {[%clk 0:03:06]} 12. Bxd6 {[%clk 0:02:51.9]} 12...
Qxd6 {[%clk 0:03:07.9]} 13. Rhe1 {[%clk 0:02:51]} 13... O-O {[%clk 0:03:07]} 14.
g4 {[%clk 0:02:41.2]} 14... b5 {[%clk 0:03:02.2]} 15. Bb3 {[%clk 0:02:41.1]}
15... a5 {[%clk 0:03:03.6]} 16. g5 {[%clk 0:02:41.8]} 16... Nd5 {[%clk
0:03:02.9]} 17. Ne4 {[%clk 0:02:42.5]} 17... Qc7 {[%clk 0:02:56.1]} 18. Rg1
{[%clk 0:02:40.1]} 18... Kh8 {[%clk 0:02:43.7]} 19. Rg4 {[%clk 0:02:35.4]} 19...
a4 {[%clk 0:02:44.3]} 20. Bxd5 {[%clk 0:02:35.7]} 20... cxd5 {[%clk 0:02:44.8]}
21. Rh4 {[%clk 0:02:27.7]} 21... dxe4 {[%clk 0:02:20.3]} 22. Qh5 {[%clk
0:02:28.5]} 22... h6 {[%clk 0:02:21.7]} 23. Rg1 {[%clk 0:02:23.6]} 23... Rac8
{[%clk 0:01:57.1]} 24. c3 {[%clk 0:02:18.1]} 24... a3 {[%clk 0:01:58.1]} 25. Rg3
{[%clk 0:01:24.1]} 25... axb2+ {[%clk 0:01:48.9]} 26. Kb1 {[%clk 0:01:24.2]}
26... b4 {[%clk 0:01:49.1]} 27. gxh6 {[%clk 0:00:55.4]} 27... g6 {[%clk
0:01:49.9]} 28. Qg5 {[%clk 0:00:33.5]} 28... bxc3 {[%clk 0:01:46.1]} 0-1

[Event "*** MasterClass Titled Tuesday Blitz"]
[Site "Chess.com"]
[Date "2017.11.07"]
[Round "5"]
[White "Krasimir_Rusev"]
[Black "oskariot"]
[Result "1-0"]
[WhiteElo "2580"]
[BlackElo "2485"]
[TimeControl "180+2"]
[EndTime "15:12:11 PST"]
[Termination "Krasimir_Rusev won by resignation"]

1. d4 {[%clk 0:03:01.9]} 1... Nf6 {[%clk 0:03:00.9]} 2. Nf3 {[%clk 0:03:01.9]}
2... g6 {[%clk 0:03:02.6]} 3. Bf4 {[%clk 0:03:03]} 3... Bg7 {[%clk 0:03:04.5]}
4. e3 {[%clk 0:03:04.7]} 4... d6 {[%clk 0:03:06.4]} 5. h3 {[%clk 0:03:06.3]}
5... O-O {[%clk 0:03:06.9]} 6. c3 {[%clk 0:03:07.4]} 6... b6 {[%clk 0:03:05.4]}
7. Bd3 {[%clk 0:03:04.6]} 7... Bb7 {[%clk 0:03:06.7]} 8. Bh2 {[%clk 0:03:06.3]}
8... Nbd7 {[%clk 0:03:08.1]} 9. Nbd2 {[%clk 0:03:07.5]} 9... c5 {[%clk
0:03:09.6]} 10. Qe2 {[%clk 0:03:08.1]} 10... Qc7 {[%clk 0:03:10.9]} 11. O-O
{[%clk 0:03:09.1]} 11... a6 {[%clk 0:03:10.7]} 12. a4 {[%clk 0:03:10.2]} 12...
Rfe8 {[%clk 0:03:02.6]} 13. e4 {[%clk 0:03:11]} 13... e5 {[%clk 0:02:58.3]} 14.
dxe5 {[%clk 0:03:12.3]} 14... Nxe5 {[%clk 0:02:59.2]} 15. Nxe5 {[%clk
0:03:13.3]} 15... dxe5 {[%clk 0:03:01.1]} 16. Nc4 {[%clk 0:03:14.7]} 16... Nh5
{[%clk 0:03:02.3]} 17. Qc2 {[%clk 0:03:08.9]} 17... Nf4 {[%clk 0:03:02.7]} 18.
Rfe1 {[%clk 0:02:59.7]} 18... Rad8 {[%clk 0:02:54.6]} 19. Bf1 {[%clk 0:03:00.4]}
19... Bc8 {[%clk 0:02:41.4]} 20. Ne3 {[%clk 0:02:59.6]} 20... Qc6 {[%clk
0:02:32.5]} 21. Rad1 {[%clk 0:02:54.1]} 21... b5 {[%clk 0:02:29.9]} 22. axb5
{[%clk 0:02:53.6]} 22... axb5 {[%clk 0:02:31.5]} 23. c4 {[%clk 0:02:54.8]} 23...
b4 {[%clk 0:02:24.9]} 24. Nd5 {[%clk 0:02:55.9]} 24... Ne6 {[%clk 0:02:24.6]}
25. Ra1 {[%clk 0:02:41.4]} 25... Nd4 {[%clk 0:02:25.6]} 26. Qa4 {[%clk
0:02:42.7]} 26... Bd7 {[%clk 0:01:49.8]} 27. Qxc6 {[%clk 0:02:40.9]} 27... Bxc6
{[%clk 0:01:51.7]} 28. Ra5 {[%clk 0:02:39.4]} 28... Nb3 {[%clk 0:01:49.1]} 29.
Ra6 {[%clk 0:02:38.6]} 29... Bb7 {[%clk 0:01:34.6]} 30. Ra7 {[%clk 0:02:38.1]}
30... Rd7 {[%clk 0:01:26.5]} 31. Re3 {[%clk 0:02:37.4]} 31... Nd4 {[%clk
0:01:23.7]} 32. Ra5 {[%clk 0:02:37.3]} 32... Ra8 {[%clk 0:01:12.9]} 33. Rxc5
{[%clk 0:02:10]} 33... Ra1 {[%clk 0:01:13.5]} 34. g4 {[%clk 0:02:08.9]} 34...
Rd8 {[%clk 0:00:59]} 35. Kg2 {[%clk 0:02:07.7]} 35... Bh6 {[%clk 0:00:58.6]} 36.
Rd3 {[%clk 0:01:51.3]} 36... Rb1 {[%clk 0:01:00]} 37. Bxe5 {[%clk 0:01:49.9]}
37... Ne6 {[%clk 0:00:59.6]} 38. Nf6+ {[%clk 0:01:47.7]} 38... Kf8 {[%clk
0:01:00.9]} 39. Rxd8+ {[%clk 0:01:48.5]} 39... Nxd8 {[%clk 0:01:01.9]} 40. Rc7
{[%clk 0:01:46.5]} 40... Rxb2 {[%clk 0:00:58.2]} 1-0

[Event "*** MasterClass Titled Tuesday Blitz"]
[Site "Chess.com"]
[Date "2017.11.07"]
[Round "5"]
[White "Genghis_K"]
[Black "tango_argentino"]
[Result "1-0"]
[WhiteElo "2646"]
[BlackElo "2485"]
[TimeControl "180+2"]
[EndTime "15:12:27 PST"]
[Termination "Genghis_K won by checkmate"]

1. e4 {[%clk 0:03:01.9]} 1... e6 {[%clk 0:03:00.3]} 2. d4 {[%clk 0:03:02.2]}
2... d5 {[%clk 0:03:00.7]} 3. Nc3 {[%clk 0:03:03.9]} 3... Nf6 {[%clk 0:03:01.4]}
4. Bd3 {[%clk 0:03:04.3]} 4... c5 {[%clk 0:02:55.8]} 5. exd5 {[%clk 0:02:48.6]}
5... exd5 {[%clk 0:02:47]} 6. Nf3 {[%clk 0:02:46.9]} 6... cxd4 {[%clk
0:02:44.3]} 7. Nxd4 {[%clk 0:02:45.8]} 7... Bc5 {[%clk 0:02:45.3]} 8. Qe2+
{[%clk 0:02:45.8]} 8... Be7 {[%clk 0:02:32]} 9. O-O {[%clk 0:02:43.5]} 9... O-O
{[%clk 0:02:32.6]} 10. Bg5 {[%clk 0:02:43.6]} 10... Nc6 {[%clk 0:02:29.6]} 11.
Nxc6 {[%clk 0:02:37.7]} 11... bxc6 {[%clk 0:02:31.5]} 12. Rfe1 {[%clk
0:02:39.2]} 12... Be6 {[%clk 0:02:32.2]} 13. Qf3 {[%clk 0:02:39]} 13... Qd7
{[%clk 0:02:27.1]} 14. h3 {[%clk 0:02:39.4]} 14... Rab8 {[%clk 0:02:27.4]} 15.
b3 {[%clk 0:02:40.1]} 15... h6 {[%clk 0:02:25.2]} 16. Bh4 {[%clk 0:02:40.9]}
16... Rb4 {[%clk 0:02:19.3]} 17. Bg3 {[%clk 0:02:40.8]} 17... c5 {[%clk
0:02:11.5]} 18. Rad1 {[%clk 0:02:41.2]} 18... Rd8 {[%clk 0:02:06.5]} 19. Be5
{[%clk 0:02:40.8]} 19... Qc6 {[%clk 0:01:59.6]} 20. Ne2 {[%clk 0:02:32.9]} 20...
Rb7 {[%clk 0:01:53.5]} 21. Nf4 {[%clk 0:02:05.4]} 21... Qd7 {[%clk 0:01:34.4]}
22. Nxe6 {[%clk 0:01:49.1]} 22... fxe6 {[%clk 0:01:33.3]} 23. c4 {[%clk
0:01:45]} 23... Rb6 {[%clk 0:01:33.2]} 24. cxd5 {[%clk 0:01:33.1]} 24... exd5
{[%clk 0:01:26.6]} 25. Bf5 {[%clk 0:01:34.5]} 25... Qb7 {[%clk 0:01:18.4]} 26.
Qg3 {[%clk 0:01:17.3]} 26... Nh5 {[%clk 0:01:13.2]} 27. Qg4 {[%clk 0:00:55.1]}
27... Nf6 {[%clk 0:01:14]} 28. Qg6 {[%clk 0:00:55.9]} 28... Kf8 {[%clk
0:01:11.7]} 29. Bf4 {[%clk 0:00:53.1]} 29... Qc6 {[%clk 0:00:57.6]} 30. Rxe7
{[%clk 0:00:47.4]} 30... Kxe7 {[%clk 0:00:57.7]} 31. Qxg7+ {[%clk 0:00:48.7]}
31... Ke8 {[%clk 0:00:56.5]} 32. Bg6# {[%clk 0:00:50]} 1-0